Workbook

Sheet Home

Sheet Invoices (hidden)
A2: Invoice ID | B2: Entity | C2: Details | D2: Category | E2: Entity Type | F2: Payment Terms | G2: Invoice Date | H2: Manual Due Date | I2: Due Date | J2: Original Amount | K2: Manual Currency | L2: Currency | M2: Paid | N2: Balance | O2: Status | P2: Days Overdue | Q2: FX Rate From | R2: FX Rate To | S2: Paid FX Rate | T2: Balance FX Rate
A3: INV-1001 | B3: Amazon Supplier Ltd | C3: Monthly Retainer | D3: Office | E3: =_xlfn.XLOOKUP(tblInvoices[[#This Row],[Entity]],tblEntities[Entity Name],tblEntities[Type],"",0) -> Vendor | F3: =_xlfn.XLOOKUP(tblInvoices[[#This Row],[Entity]],tblEntities[Entity Name],tblEntities[Payment Terms],"",0) -> 7 | G3: 2026-04-04 | I3: =IF(tblInvoices[[#This Row],[Manual Due Date]]>0,tblInvoices[[#This Row],[Manual Due Date]],tblInvoices[[#This Row],[Payment Terms]]+tblInvoices[[#This Row],[Invoice Date]]) -> 2026-04-11 | J3: 150 | L3: =IF(tblInvoices[[#This Row],[Manual Currency]]>0,tblInvoices[[#This Row],[Manual Currency]],_xlfn.XLOOKUP(tblInvoices[[#This Row],[Entity]],tblEntities[Entity Name],tblEntities[Currency],"",0)) -> USD | M3: =SUMIFS(tblPayments[Amount],tblPayments[Invoice ID],tblInvoices[[#This Row],[Invoice ID]]) -> 150 | N3: =tblInvoices[[#This Row],[Original Amount]]-tblInvoices[[#This Row],[Paid]] -> 0 | O3: =_xlfn.IFS( tblInvoices[[#This Row],[Original Amount]]="","", tblInvoices[[#This Row],[Balance]]=0,"Paid", TODAY()>tblInvoices[[#This Row],[Due Date]],"Late", TRUE,"Open" ) -> Paid | P3: =IF(tblInvoices[[#This Row],[Status]]="Late",TODAY()-tblInvoices[[#This Row],[Due Date]],0) -> 0 | Q3: =_xlfn.XLOOKUP(tblInvoices[[#This Row],[Currency]],tblCurrency[Currency],tblCurrency[FX Rate to USD],"",0) -> 1 | R3: =_xlfn.XLOOKUP(Setup!$A$11,tblCurrency[Currency],tblCurrency[FX Rate to USD],"",0) -> 1 | S3: =tblInvoices[[#This Row],[Paid]]*tblInvoices[[#This Row],[FX Rate From]]/tblInvoices[[#This Row],[FX Rate To]] -> 150 | T3: =tblInvoices[[#This Row],[Balance]]*tblInvoices[[#This Row],[FX Rate From]]/tblInvoices[[#This Row],[FX Rate To]] -> 0
A4: INV-1002 | B4: Fresh Foods Co | C4: Invoice #FF-1023 | D4: Office | E4: =_xlfn.XLOOKUP(tblInvoices[[#This Row],[Entity]],tblEntities[Entity Name],tblEntities[Type],"",0) -> Vendor | F4: =_xlfn.XLOOKUP(tblInvoices[[#This Row],[Entity]],tblEntities[Entity Name],tblEntities[Payment Terms],"",0) -> 14 | G4: 2026-03-25 | I4: =IF(tblInvoices[[#This Row],[Manual Due Date]]>0,tblInvoices[[#This Row],[Manual Due Date]],tblInvoices[[#This Row],[Payment Terms]]+tblInvoices[[#This Row],[Invoice Date]]) -> 2026-04-08 | J4: 200 | L4: =IF(tblInvoices[[#This Row],[Manual Currency]]>0,tblInvoices[[#This Row],[Manual Currency]],_xlfn.XLOOKUP(tblInvoices[[#This Row],[Entity]],tblEntities[Entity Name],tblEntities[Currency],"",0)) -> EUR | M4: =SUMIFS(tblPayments[Amount],tblPayments[Invoice ID],tblInvoices[[#This Row],[Invoice ID]]) -> 200 | N4: =tblInvoices[[#This Row],[Original Amount]]-tblInvoices[[#This Row],[Paid]] -> 0 | O4: =_xlfn.IFS( tblInvoices[[#This Row],[Original Amount]]="","", tblInvoices[[#This Row],[Balance]]=0,"Paid", TODAY()>tblInvoices[[#This Row],[Due Date]],"Late", TRUE,"Open" ) -> Paid | P4: =IF(tblInvoices[[#This Row],[Status]]="Late",TODAY()-tblInvoices[[#This Row],[Due Date]],0) -> 0 | Q4: =_xlfn.XLOOKUP(tblInvoices[[#This Row],[Currency]],tblCurrency[Currency],tblCurrency[FX Rate to USD],"",0) -> 1.18 | R4: =_xlfn.XLOOKUP(Setup!$A$11,tblCurrency[Currency],tblCurrency[FX Rate to USD],"",0) -> 1 | S4: =tblInvoices[[#This Row],[Paid]]*tblInvoices[[#This Row],[FX Rate From]]/tblInvoices[[#This Row],[FX Rate To]] -> 236 | T4: =tblInvoices[[#This Row],[Balance]]*tblInvoices[[#This Row],[FX Rate From]]/tblInvoices[[#This Row],[FX Rate To]] -> 0
A5: INV-1003 | B5: Office Depot | C5: Office Supplies Mar | D5: Office | E5: =_xlfn.XLOOKUP(tblInvoices[[#This Row],[Entity]],tblEntities[Entity Name],tblEntities[Type],"",0) -> Vendor | F5: =_xlfn.XLOOKUP(tblInvoices[[#This Row],[Entity]],tblEntities[Entity Name],tblEntities[Payment Terms],"",0) -> 30 | G5: 2026-03-15 | I5: =IF(tblInvoices[[#This Row],[Manual Due Date]]>0,tblInvoices[[#This Row],[Manual Due Date]],tblInvoices[[#This Row],[Payment Terms]]+tblInvoices[[#This Row],[Invoice Date]]) -> 2026-04-14 | J5: 250 | L5: =IF(tblInvoices[[#This Row],[Manual Currency]]>0,tblInvoices[[#This Row],[Manual Currency]],_xlfn.XLOOKUP(tblInvoices[[#This Row],[Entity]],tblEntities[Entity Name],tblEntities[Currency],"",0)) -> GBP | M5: =SUMIFS(tblPayments[Amount],tblPayments[Invoice ID],tblInvoices[[#This Row],[Invoice ID]]) -> 100 | N5: =tblInvoices[[#This Row],[Original Amount]]-tblInvoices[[#This Row],[Paid]] -> 150 | O5: =_xlfn.IFS( tblInvoices[[#This Row],[Original Amount]]="","", tblInvoices[[#This Row],[Balance]]=0,"Paid", TODAY()>tblInvoices[[#This Row],[Due Date]],"Late", TRUE,"Open" ) -> Late | P5: =IF(tblInvoices[[#This Row],[Status]]="Late",TODAY()-tblInvoices[[#This Row],[Due Date]],0) -> 2 | Q5: =_xlfn.XLOOKUP(tblInvoices[[#This Row],[Currency]],tblCurrency[Currency],tblCurrency[FX Rate to USD],"",0) -> 1.25 | R5: =_xlfn.XLOOKUP(Setup!$A$11,tblCurrency[Currency],tblCurrency[FX Rate to USD],"",0) -> 1 | S5: =tblInvoices[[#This Row],[Paid]]*tblInvoices[[#This Row],[FX Rate From]]/tblInvoices[[#This Row],[FX Rate To]] -> 125 | T5: =tblInvoices[[#This Row],[Balance]]*tblInvoices[[#This Row],[FX Rate From]]/tblInvoices[[#This Row],[FX Rate To]] -> 187.5
A6: INV-1004 | B6: Tech Components Inc | C6: Hardware Batch #TC-88 | D6: Office | E6: =_xlfn.XLOOKUP(tblInvoices[[#This Row],[Entity]],tblEntities[Entity Name],tblEntities[Type],"",0) -> Vendor | F6: =_xlfn.XLOOKUP(tblInvoices[[#This Row],[Entity]],tblEntities[Entity Name],tblEntities[Payment Terms],"",0) -> 0 | G6: 2026-03-05 | I6: =IF(tblInvoices[[#This Row],[Manual Due Date]]>0,tblInvoices[[#This Row],[Manual Due Date]],tblInvoices[[#This Row],[Payment Terms]]+tblInvoices[[#This Row],[Invoice Date]]) -> 2026-03-05 | J6: 300 | L6: =IF(tblInvoices[[#This Row],[Manual Currency]]>0,tblInvoices[[#This Row],[Manual Currency]],_xlfn.XLOOKUP(tblInvoices[[#This Row],[Entity]],tblEntities[Entity Name],tblEntities[Currency],"",0)) -> USD | M6: =SUMIFS(tblPayments[Amount],tblPayments[Invoice ID],tblInvoices[[#This Row],[Invoice ID]]) -> 100 | N6: =tblInvoices[[#This Row],[Original Amount]]-tblInvoices[[#This Row],[Paid]] -> 200 | O6: =_xlfn.IFS( tblInvoices[[#This Row],[Original Amount]]="","", tblInvoices[[#This Row],[Balance]]=0,"Paid", TODAY()>tblInvoices[[#This Row],[Due Date]],"Late", TRUE,"Open" ) -> Late | P6: =IF(tblInvoices[[#This Row],[Status]]="Late",TODAY()-tblInvoices[[#This Row],[Due Date]],0) -> 42 | Q6: =_xlfn.XLOOKUP(tblInvoices[[#This Row],[Currency]],tblCurrency[Currency],tblCurrency[FX Rate to USD],"",0) -> 1 | R6: =_xlfn.XLOOKUP(Setup!$A$11,tblCurrency[Currency],tblCurrency[FX Rate to USD],"",0) -> 1 | S6: =tblInvoices[[#This Row],[Paid]]*tblInvoices[[#This Row],[FX Rate From]]/tblInvoices[[#This Row],[FX Rate To]] -> 100 | T6: =tblInvoices[[#This Row],[Balance]]*tblInvoices[[#This Row],[FX Rate From]]/tblInvoices[[#This Row],[FX Rate To]] -> 200
A7: INV-1005 | B7: Global Packaging | C7: Packaging Order #GP-1 | D7: Office | E7: =_xlfn.XLOOKUP(tblInvoices[[#This Row],[Entity]],tblEntities[Entity Name],tblEntities[Type],"",0) -> Vendor | F7: =_xlfn.XLOOKUP(tblInvoices[[#This Row],[Entity]],tblEntities[Entity Name],tblEntities[Payment Terms],"",0) -> 7 | G7: 2026-02-23 | H7: 2026-05-15 | I7: =IF(tblInvoices[[#This Row],[Manual Due Date]]>0,tblInvoices[[#This Row],[Manual Due Date]],tblInvoices[[#This Row],[Payment Terms]]+tblInvoices[[#This Row],[Invoice Date]]) -> 2026-05-15 | J7: 350 | L7: =IF(tblInvoices[[#This Row],[Manual Currency]]>0,tblInvoices[[#This Row],[Manual Currency]],_xlfn.XLOOKUP(tblInvoices[[#This Row],[Entity]],tblEntities[Entity Name],tblEntities[Currency],"",0)) -> EUR | M7: =SUMIFS(tblPayments[Amount],tblPayments[Invoice ID],tblInvoices[[#This Row],[Invoice ID]]) -> 100 | N7: =tblInvoices[[#This Row],[Original Amount]]-tblInvoices[[#This Row],[Paid]] -> 250 | O7: =_xlfn.IFS( tblInvoices[[#This Row],[Original Amount]]="","", tblInvoices[[#This Row],[Balance]]=0,"Paid", TODAY()>tblInvoices[[#This Row],[Due Date]],"Late", TRUE,"Open" ) -> Open | P7: =IF(tblInvoices[[#This Row],[Status]]="Late",TODAY()-tblInvoices[[#This Row],[Due Date]],0) -> 0 | Q7: =_xlfn.XLOOKUP(tblInvoices[[#This Row],[Currency]],tblCurrency[Currency],tblCurrency[FX Rate to USD],"",0) -> 1.18 | R7: =_xlfn.XLOOKUP(Setup!$A$11,tblCurrency[Currency],tblCurrency[FX Rate to USD],"",0) -> 1 | S7: =tblInvoices[[#This Row],[Paid]]*tblInvoices[[#This Row],[FX Rate From]]/tblInvoices[[#This Row],[FX Rate To]] -> 118 | T7: =tblInvoices[[#This Row],[Balance]]*tblInvoices[[#This Row],[FX Rate From]]/tblInvoices[[#This Row],[FX Rate To]] -> 295
A8: INV-1006 | B8: Global Packaging | C8: Packaging Order #GP-2 | D8: Office | E8: =_xlfn.XLOOKUP(tblInvoices[[#This Row],[Entity]],tblEntities[Entity Name],tblEntities[Type],"",0) -> Vendor | F8: =_xlfn.XLOOKUP(tblInvoices[[#This Row],[Entity]],tblEntities[Entity Name],tblEntities[Payment Terms],"",0) -> 7 | G8: 2026-02-13 | I8: =IF(tblInvoices[[#This Row],[Manual Due Date]]>0,tblInvoices[[#This Row],[Manual Due Date]],tblInvoices[[#This Row],[Payment Terms]]+tblInvoices[[#This Row],[Invoice Date]]) -> 2026-02-20 | J8: 400 | L8: =IF(tblInvoices[[#This Row],[Manual Currency]]>0,tblInvoices[[#This Row],[Manual Currency]],_xlfn.XLOOKUP(tblInvoices[[#This Row],[Entity]],tblEntities[Entity Name],tblEntities[Currency],"",0)) -> EUR | M8: =SUMIFS(tblPayments[Amount],tblPayments[Invoice ID],tblInvoices[[#This Row],[Invoice ID]]) -> 400 | N8: =tblInvoices[[#This Row],[Original Amount]]-tblInvoices[[#This Row],[Paid]] -> 0 | O8: =_xlfn.IFS( tblInvoices[[#This Row],[Original Amount]]="","", tblInvoices[[#This Row],[Balance]]=0,"Paid", TODAY()>tblInvoices[[#This Row],[Due Date]],"Late", TRUE,"Open" ) -> Paid | P8: =IF(tblInvoices[[#This Row],[Status]]="Late",TODAY()-tblInvoices[[#This Row],[Due Date]],0) -> 0 | Q8: =_xlfn.XLOOKUP(tblInvoices[[#This Row],[Currency]],tblCurrency[Currency],tblCurrency[FX Rate to USD],"",0) -> 1.18 | R8: =_xlfn.XLOOKUP(Setup!$A$11,tblCurrency[Currency],tblCurrency[FX Rate to USD],"",0) -> 1 | S8: =tblInvoices[[#This Row],[Paid]]*tblInvoices[[#This Row],[FX Rate From]]/tblInvoices[[#This Row],[FX Rate To]] -> 472 | T8: =tblInvoices[[#This Row],[Balance]]*tblInvoices[[#This Row],[FX Rate From]]/tblInvoices[[#This Row],[FX Rate To]] -> 0
A9: INV-1007 | B9: Global Packaging | C9: Packaging Adjustment | D9: Office | E9: =_xlfn.XLOOKUP(tblInvoices[[#This Row],[Entity]],tblEntities[Entity Name],tblEntities[Type],"",0) -> Vendor | F9: =_xlfn.XLOOKUP(tblInvoices[[#This Row],[Entity]],tblEntities[Entity Name],tblEntities[Payment Terms],"",0) -> 7 | G9: 2026-02-03 | I9: =IF(tblInvoices[[#This Row],[Manual Due Date]]>0,tblInvoices[[#This Row],[Manual Due Date]],tblInvoices[[#This Row],[Payment Terms]]+tblInvoices[[#This Row],[Invoice Date]]) -> 2026-02-10 | J9: 450 | L9: =IF(tblInvoices[[#This Row],[Manual Currency]]>0,tblInvoices[[#This Row],[Manual Currency]],_xlfn.XLOOKUP(tblInvoices[[#This Row],[Entity]],tblEntities[Entity Name],tblEntities[Currency],"",0)) -> EUR | M9: =SUMIFS(tblPayments[Amount],tblPayments[Invoice ID],tblInvoices[[#This Row],[Invoice ID]]) -> 0 | N9: =tblInvoices[[#This Row],[Original Amount]]-tblInvoices[[#This Row],[Paid]] -> 450 | O9: =_xlfn.IFS( tblInvoices[[#This Row],[Original Amount]]="","", tblInvoices[[#This Row],[Balance]]=0,"Paid", TODAY()>tblInvoices[[#This Row],[Due Date]],"Late", TRUE,"Open" ) -> Late | P9: =IF(tblInvoices[[#This Row],[Status]]="Late",TODAY()-tblInvoices[[#This Row],[Due Date]],0) -> 65 | Q9: =_xlfn.XLOOKUP(tblInvoices[[#This Row],[Currency]],tblCurrency[Currency],tblCurrency[FX Rate to USD],"",0) -> 1.18 | R9: =_xlfn.XLOOKUP(Setup!$A$11,tblCurrency[Currency],tblCurrency[FX Rate to USD],"",0) -> 1 | S9: =tblInvoices[[#This Row],[Paid]]*tblInvoices[[#This Row],[FX Rate From]]/tblInvoices[[#This Row],[FX Rate To]] -> 0 | T9: =tblInvoices[[#This Row],[Balance]]*tblInvoices[[#This Row],[FX Rate From]]/tblInvoices[[#This Row],[FX Rate To]] -> 531
A10: INV-1008 | B10: Global Packaging | C10: Bulk Packaging Order | D10: Office | E10: =_xlfn.XLOOKUP(tblInvoices[[#This Row],[Entity]],tblEntities[Entity Name],tblEntities[Type],"",0) -> Vendor | F10: =_xlfn.XLOOKUP(tblInvoices[[#This Row],[Entity]],tblEntities[Entity Name],tblEntities[Payment Terms],"",0) -> 7 | G10: 2026-01-24 | I10: =IF(tblInvoices[[#This Row],[Manual Due Date]]>0,tblInvoices[[#This Row],[Manual Due Date]],tblInvoices[[#This Row],[Payment Terms]]+tblInvoices[[#This Row],[Invoice Date]]) -> 2026-01-31 | J10: 500 | L10: =IF(tblInvoices[[#This Row],[Manual Currency]]>0,tblInvoices[[#This Row],[Manual Currency]],_xlfn.XLOOKUP(tblInvoices[[#This Row],[Entity]],tblEntities[Entity Name],tblEntities[Currency],"",0)) -> EUR | M10: =SUMIFS(tblPayments[Amount],tblPayments[Invoice ID],tblInvoices[[#This Row],[Invoice ID]]) -> 500 | N10: =tblInvoices[[#This Row],[Original Amount]]-tblInvoices[[#This Row],[Paid]] -> 0 | O10: =_xlfn.IFS( tblInvoices[[#This Row],[Original Amount]]="","", tblInvoices[[#This Row],[Balance]]=0,"Paid", TODAY()>tblInvoices[[#This Row],[Due Date]],"Late", TRUE,"Open" ) -> Paid | P10: =IF(tblInvoices[[#This Row],[Status]]="Late",TODAY()-tblInvoices[[#This Row],[Due Date]],0) -> 0 | Q10: =_xlfn.XLOOKUP(tblInvoices[[#This Row],[Currency]],tblCurrency[Currency],tblCurrency[FX Rate to USD],"",0) -> 1.18 | R10: =_xlfn.XLOOKUP(Setup!$A$11,tblCurrency[Currency],tblCurrency[FX Rate to USD],"",0) -> 1 | S10: =tblInvoices[[#This Row],[Paid]]*tblInvoices[[#This Row],[FX Rate From]]/tblInvoices[[#This Row],[FX Rate To]] -> 590 | T10: =tblInvoices[[#This Row],[Balance]]*tblInvoices[[#This Row],[FX Rate From]]/tblInvoices[[#This Row],[FX Rate To]] -> 0
A11: INV-1009 | B11: Global Packaging | C11: Food Packaging Lot | D11: Food | E11: =_xlfn.XLOOKUP(tblInvoices[[#This Row],[Entity]],tblEntities[Entity Name],tblEntities[Type],"",0) -> Vendor | F11: =_xlfn.XLOOKUP(tblInvoices[[#This Row],[Entity]],tblEntities[Entity Name],tblEntities[Payment Terms],"",0) -> 7 | G11: 2026-01-14 | I11: =IF(tblInvoices[[#This Row],[Manual Due Date]]>0,tblInvoices[[#This Row],[Manual Due Date]],tblInvoices[[#This Row],[Payment Terms]]+tblInvoices[[#This Row],[Invoice Date]]) -> 2026-01-21 | J11: 550 | L11: =IF(tblInvoices[[#This Row],[Manual Currency]]>0,tblInvoices[[#This Row],[Manual Currency]],_xlfn.XLOOKUP(tblInvoices[[#This Row],[Entity]],tblEntities[Entity Name],tblEntities[Currency],"",0)) -> EUR | M11: =SUMIFS(tblPayments[Amount],tblPayments[Invoice ID],tblInvoices[[#This Row],[Invoice ID]]) -> 0 | N11: =tblInvoices[[#This Row],[Original Amount]]-tblInvoices[[#This Row],[Paid]] -> 550 | O11: =_xlfn.IFS( tblInvoices[[#This Row],[Original Amount]]="","", tblInvoices[[#This Row],[Balance]]=0,"Paid", TODAY()>tblInvoices[[#This Row],[Due Date]],"Late", TRUE,"Open" ) -> Late | P11: =IF(tblInvoices[[#This Row],[Status]]="Late",TODAY()-tblInvoices[[#This Row],[Due Date]],0) -> 85 | Q11: =_xlfn.XLOOKUP(tblInvoices[[#This Row],[Currency]],tblCurrency[Currency],tblCurrency[FX Rate to USD],"",0) -> 1.18 | R11: =_xlfn.XLOOKUP(Setup!$A$11,tblCurrency[Currency],tblCurrency[FX Rate to USD],"",0) -> 1 | S11: =tblInvoices[[#This Row],[Paid]]*tblInvoices[[#This Row],[FX Rate From]]/tblInvoices[[#This Row],[FX Rate To]] -> 0 | T11: =tblInvoices[[#This Row],[Balance]]*tblInvoices[[#This Row],[FX Rate From]]/tblInvoices[[#This Row],[FX Rate To]] -> 649
A12: INV-1010 | B12: Office Depot | C12: Pantry Supplies | D12: Food | E12: =_xlfn.XLOOKUP(tblInvoices[[#This Row],[Entity]],tblEntities[Entity Name],tblEntities[Type],"",0) -> Vendor | F12: =_xlfn.XLOOKUP(tblInvoices[[#This Row],[Entity]],tblEntities[Entity Name],tblEntities[Payment Terms],"",0) -> 30 | G12: 2026-04-12 | I12: =IF(tblInvoices[[#This Row],[Manual Due Date]]>0,tblInvoices[[#This Row],[Manual Due Date]],tblInvoices[[#This Row],[Payment Terms]]+tblInvoices[[#This Row],[Invoice Date]]) -> 2026-05-12 | J12: 475 | L12: =IF(tblInvoices[[#This Row],[Manual Currency]]>0,tblInvoices[[#This Row],[Manual Currency]],_xlfn.XLOOKUP(tblInvoices[[#This Row],[Entity]],tblEntities[Entity Name],tblEntities[Currency],"",0)) -> GBP | M12: =SUMIFS(tblPayments[Amount],tblPayments[Invoice ID],tblInvoices[[#This Row],[Invoice ID]]) -> 0 | N12: =tblInvoices[[#This Row],[Original Amount]]-tblInvoices[[#This Row],[Paid]] -> 475 | O12: =_xlfn.IFS( tblInvoices[[#This Row],[Original Amount]]="","", tblInvoices[[#This Row],[Balance]]=0,"Paid", TODAY()>tblInvoices[[#This Row],[Due Date]],"Late", TRUE,"Open" ) -> Open | P12: =IF(tblInvoices[[#This Row],[Status]]="Late",TODAY()-tblInvoices[[#This Row],[Due Date]],0) -> 0 | Q12: =_xlfn.XLOOKUP(tblInvoices[[#This Row],[Currency]],tblCurrency[Currency],tblCurrency[FX Rate to USD],"",0) -> 1.25 | R12: =_xlfn.XLOOKUP(Setup!$A$11,tblCurrency[Currency],tblCurrency[FX Rate to USD],"",0) -> 1 | S12: =tblInvoices[[#This Row],[Paid]]*tblInvoices[[#This Row],[FX Rate From]]/tblInvoices[[#This Row],[FX Rate To]] -> 0 | T12: =tblInvoices[[#This Row],[Balance]]*tblInvoices[[#This Row],[FX Rate From]]/tblInvoices[[#This Row],[FX Rate To]] -> 593.75
A13: INV-1011 | B13: AJ Hardware | C13: Equipment Purchase | D13: Product | E13: =_xlfn.XLOOKUP(tblInvoices[[#This Row],[Entity]],tblEntities[Entity Name],tblEntities[Type],"",0) -> Customer | F13: =_xlfn.XLOOKUP(tblInvoices[[#This Row],[Entity]],tblEntities[Entity Name],tblEntities[Payment Terms],"",0) -> 14 | G13: 2026-03-31 | H13: 2026-06-15 | I13: =IF(tblInvoices[[#This Row],[Manual Due Date]]>0,tblInvoices[[#This Row],[Manual Due Date]],tblInvoices[[#This Row],[Payment Terms]]+tblInvoices[[#This Row],[Invoice Date]]) -> 2026-06-15 | J13: 1500 | L13: =IF(tblInvoices[[#This Row],[Manual Currency]]>0,tblInvoices[[#This Row],[Manual Currency]],_xlfn.XLOOKUP(tblInvoices[[#This Row],[Entity]],tblEntities[Entity Name],tblEntities[Currency],"",0)) -> GBP | M13: =SUMIFS(tblPayments[Amount],tblPayments[Invoice ID],tblInvoices[[#This Row],[Invoice ID]]) -> 0 | N13: =tblInvoices[[#This Row],[Original Amount]]-tblInvoices[[#This Row],[Paid]] -> 1500 | O13: =_xlfn.IFS( tblInvoices[[#This Row],[Original Amount]]="","", tblInvoices[[#This Row],[Balance]]=0,"Paid", TODAY()>tblInvoices[[#This Row],[Due Date]],"Late", TRUE,"Open" ) -> Open | P13: =IF(tblInvoices[[#This Row],[Status]]="Late",TODAY()-tblInvoices[[#This Row],[Due Date]],0) -> 0 | Q13: =_xlfn.XLOOKUP(tblInvoices[[#This Row],[Currency]],tblCurrency[Currency],tblCurrency[FX Rate to USD],"",0) -> 1.25 | R13: =_xlfn.XLOOKUP(Setup!$A$11,tblCurrency[Currency],tblCurrency[FX Rate to USD],"",0) -> 1 | S13: =tblInvoices[[#This Row],[Paid]]*tblInvoices[[#This Row],[FX Rate From]]/tblInvoices[[#This Row],[FX Rate To]] -> 0 | T13: =tblInvoices[[#This Row],[Balance]]*tblInvoices[[#This Row],[FX Rate From]]/tblInvoices[[#This Row],[FX Rate To]] -> 1875
A14: INV-1012 | B14: NextGen Tech | C14: Consulting Phase 1 | D14: Consulting | E14: =_xlfn.XLOOKUP(tblInvoices[[#This Row],[Entity]],tblEntities[Entity Name],tblEntities[Type],"",0) -> Customer | F14: =_xlfn.XLOOKUP(tblInvoices[[#This Row],[Entity]],tblEntities[Entity Name],tblEntities[Payment Terms],"",0) -> 30 | G14: 2026-03-08 | I14: =IF(tblInvoices[[#This Row],[Manual Due Date]]>0,tblInvoices[[#This Row],[Manual Due Date]],tblInvoices[[#This Row],[Payment Terms]]+tblInvoices[[#This Row],[Invoice Date]]) -> 2026-04-07 | J14: 2500 | L14: =IF(tblInvoices[[#This Row],[Manual Currency]]>0,tblInvoices[[#This Row],[Manual Currency]],_xlfn.XLOOKUP(tblInvoices[[#This Row],[Entity]],tblEntities[Entity Name],tblEntities[Currency],"",0)) -> USD | M14: =SUMIFS(tblPayments[Amount],tblPayments[Invoice ID],tblInvoices[[#This Row],[Invoice ID]]) -> 2000 | N14: =tblInvoices[[#This Row],[Original Amount]]-tblInvoices[[#This Row],[Paid]] -> 500 | O14: =_xlfn.IFS( tblInvoices[[#This Row],[Original Amount]]="","", tblInvoices[[#This Row],[Balance]]=0,"Paid", TODAY()>tblInvoices[[#This Row],[Due Date]],"Late", TRUE,"Open" ) -> Late | P14: =IF(tblInvoices[[#This Row],[Status]]="Late",TODAY()-tblInvoices[[#This Row],[Due Date]],0) -> 9 | Q14: =_xlfn.XLOOKUP(tblInvoices[[#This Row],[Currency]],tblCurrency[Currency],tblCurrency[FX Rate to USD],"",0) -> 1 | R14: =_xlfn.XLOOKUP(Setup!$A$11,tblCurrency[Currency],tblCurrency[FX Rate to USD],"",0) -> 1 | S14: =tblInvoices[[#This Row],[Paid]]*tblInvoices[[#This Row],[FX Rate From]]/tblInvoices[[#This Row],[FX Rate To]] -> 2000 | T14: =tblInvoices[[#This Row],[Balance]]*tblInvoices[[#This Row],[FX Rate From]]/tblInvoices[[#This Row],[FX Rate To]] -> 500
A15: INV-1013 | B15: NextGen Tech | C15: Product Integration | D15: Product | E15: =_xlfn.XLOOKUP(tblInvoices[[#This Row],[Entity]],tblEntities[Entity Name],tblEntities[Type],"",0) -> Customer | F15: =_xlfn.XLOOKUP(tblInvoices[[#This Row],[Entity]],tblEntities[Entity Name],tblEntities[Payment Terms],"",0) -> 30 | G15: 2026-03-12 | I15: =IF(tblInvoices[[#This Row],[Manual Due Date]]>0,tblInvoices[[#This Row],[Manual Due Date]],tblInvoices[[#This Row],[Payment Terms]]+tblInvoices[[#This Row],[Invoice Date]]) -> 2026-04-11 | J15: 3250 | L15: =IF(tblInvoices[[#This Row],[Manual Currency]]>0,tblInvoices[[#This Row],[Manual Currency]],_xlfn.XLOOKUP(tblInvoices[[#This Row],[Entity]],tblEntities[Entity Name],tblEntities[Currency],"",0)) -> USD | M15: =SUMIFS(tblPayments[Amount],tblPayments[Invoice ID],tblInvoices[[#This Row],[Invoice ID]]) -> 3250 | N15: =tblInvoices[[#This Row],[Original Amount]]-tblInvoices[[#This Row],[Paid]] -> 0 | O15: =_xlfn.IFS( tblInvoices[[#This Row],[Original Amount]]="","", tblInvoices[[#This Row],[Balance]]=0,"Paid", TODAY()>tblInvoices[[#This Row],[Due Date]],"Late", TRUE,"Open" ) -> Paid | P15: =IF(tblInvoices[[#This Row],[Status]]="Late",TODAY()-tblInvoices[[#This Row],[Due Date]],0) -> 0 | Q15: =_xlfn.XLOOKUP(tblInvoices[[#This Row],[Currency]],tblCurrency[Currency],tblCurrency[FX Rate to USD],"",0) -> 1 | R15: =_xlfn.XLOOKUP(Setup!$A$11,tblCurrency[Currency],tblCurrency[FX Rate to USD],"",0) -> 1 | S15: =tblInvoices[[#This Row],[Paid]]*tblInvoices[[#This Row],[FX Rate From]]/tblInvoices[[#This Row],[FX Rate To]] -> 3250 | T15: =tblInvoices[[#This Row],[Balance]]*tblInvoices[[#This Row],[FX Rate From]]/tblInvoices[[#This Row],[FX Rate To]] -> 0
A16: INV-1014 | B16: NextGen Tech | C16: Consulting Phase 2 | D16: Consulting | E16: =_xlfn.XLOOKUP(tblInvoices[[#This Row],[Entity]],tblEntities[Entity Name],tblEntities[Type],"",0) -> Customer | F16: =_xlfn.XLOOKUP(tblInvoices[[#This Row],[Entity]],tblEntities[Entity Name],tblEntities[Payment Terms],"",0) -> 30 | G16: 2026-02-18 | H16: 2026-08-20 | I16: =IF(tblInvoices[[#This Row],[Manual Due Date]]>0,tblInvoices[[#This Row],[Manual Due Date]],tblInvoices[[#This Row],[Payment Terms]]+tblInvoices[[#This Row],[Invoice Date]]) -> 2026-08-20 | J16: 500 | L16: =IF(tblInvoices[[#This Row],[Manual Currency]]>0,tblInvoices[[#This Row],[Manual Currency]],_xlfn.XLOOKUP(tblInvoices[[#This Row],[Entity]],tblEntities[Entity Name],tblEntities[Currency],"",0)) -> USD | M16: =SUMIFS(tblPayments[Amount],tblPayments[Invoice ID],tblInvoices[[#This Row],[Invoice ID]]) -> 0 | N16: =tblInvoices[[#This Row],[Original Amount]]-tblInvoices[[#This Row],[Paid]] -> 500 | O16: =_xlfn.IFS( tblInvoices[[#This Row],[Original Amount]]="","", tblInvoices[[#This Row],[Balance]]=0,"Paid", TODAY()>tblInvoices[[#This Row],[Due Date]],"Late", TRUE,"Open" ) -> Open | P16: =IF(tblInvoices[[#This Row],[Status]]="Late",TODAY()-tblInvoices[[#This Row],[Due Date]],0) -> 0 | Q16: =_xlfn.XLOOKUP(tblInvoices[[#This Row],[Currency]],tblCurrency[Currency],tblCurrency[FX Rate to USD],"",0) -> 1 | R16: =_xlfn.XLOOKUP(Setup!$A$11,tblCurrency[Currency],tblCurrency[FX Rate to USD],"",0) -> 1 | S16: =tblInvoices[[#This Row],[Paid]]*tblInvoices[[#This Row],[FX Rate From]]/tblInvoices[[#This Row],[FX Rate To]] -> 0 | T16: =tblInvoices[[#This Row],[Balance]]*tblInvoices[[#This Row],[FX Rate From]]/tblInvoices[[#This Row],[FX Rate To]] -> 500
A17: INV-1015 | B17: NextGen Tech | C17: Support Retainer | D17: Consulting | E17: =_xlfn.XLOOKUP(tblInvoices[[#This Row],[Entity]],tblEntities[Entity Name],tblEntities[Type],"",0) -> Customer | F17: =_xlfn.XLOOKUP(tblInvoices[[#This Row],[Entity]],tblEntities[Entity Name],tblEntities[Payment Terms],"",0) -> 30 | G17: 2026-02-25 | I17: =IF(tblInvoices[[#This Row],[Manual Due Date]]>0,tblInvoices[[#This Row],[Manual Due Date]],tblInvoices[[#This Row],[Payment Terms]]+tblInvoices[[#This Row],[Invoice Date]]) -> 2026-03-27 | J17: 1250 | L17: =IF(tblInvoices[[#This Row],[Manual Currency]]>0,tblInvoices[[#This Row],[Manual Currency]],_xlfn.XLOOKUP(tblInvoices[[#This Row],[Entity]],tblEntities[Entity Name],tblEntities[Currency],"",0)) -> USD | M17: =SUMIFS(tblPayments[Amount],tblPayments[Invoice ID],tblInvoices[[#This Row],[Invoice ID]]) -> 0 | N17: =tblInvoices[[#This Row],[Original Amount]]-tblInvoices[[#This Row],[Paid]] -> 1250 | O17: =_xlfn.IFS( tblInvoices[[#This Row],[Original Amount]]="","", tblInvoices[[#This Row],[Balance]]=0,"Paid", TODAY()>tblInvoices[[#This Row],[Due Date]],"Late", TRUE,"Open" ) -> Late | P17: =IF(tblInvoices[[#This Row],[Status]]="Late",TODAY()-tblInvoices[[#This Row],[Due Date]],0) -> 20 | Q17: =_xlfn.XLOOKUP(tblInvoices[[#This Row],[Currency]],tblCurrency[Currency],tblCurrency[FX Rate to USD],"",0) -> 1 | R17: =_xlfn.XLOOKUP(Setup!$A$11,tblCurrency[Currency],tblCurrency[FX Rate to USD],"",0) -> 1 | S17: =tblInvoices[[#This Row],[Paid]]*tblInvoices[[#This Row],[FX Rate From]]/tblInvoices[[#This Row],[FX Rate To]] -> 0 | T17: =tblInvoices[[#This Row],[Balance]]*tblInvoices[[#This Row],[FX Rate From]]/tblInvoices[[#This Row],[FX Rate To]] -> 1250
A18: INV-1016 | B18: NextGen Tech | C18: Final Delivery | D18: Consulting | E18: =_xlfn.XLOOKUP(tblInvoices[[#This Row],[Entity]],tblEntities[Entity Name],tblEntities[Type],"",0) -> Customer | F18: =_xlfn.XLOOKUP(tblInvoices[[#This Row],[Entity]],tblEntities[Entity Name],tblEntities[Payment Terms],"",0) -> 30 | G18: 2026-02-03 | I18: =IF(tblInvoices[[#This Row],[Manual Due Date]]>0,tblInvoices[[#This Row],[Manual Due Date]],tblInvoices[[#This Row],[Payment Terms]]+tblInvoices[[#This Row],[Invoice Date]]) -> 2026-03-05 | J18: 4000 | L18: =IF(tblInvoices[[#This Row],[Manual Currency]]>0,tblInvoices[[#This Row],[Manual Currency]],_xlfn.XLOOKUP(tblInvoices[[#This Row],[Entity]],tblEntities[Entity Name],tblEntities[Currency],"",0)) -> USD | M18: =SUMIFS(tblPayments[Amount],tblPayments[Invoice ID],tblInvoices[[#This Row],[Invoice ID]]) -> 2000 | N18: =tblInvoices[[#This Row],[Original Amount]]-tblInvoices[[#This Row],[Paid]] -> 2000 | O18: =_xlfn.IFS( tblInvoices[[#This Row],[Original Amount]]="","", tblInvoices[[#This Row],[Balance]]=0,"Paid", TODAY()>tblInvoices[[#This Row],[Due Date]],"Late", TRUE,"Open" ) -> Late | P18: =IF(tblInvoices[[#This Row],[Status]]="Late",TODAY()-tblInvoices[[#This Row],[Due Date]],0) -> 42 | Q18: =_xlfn.XLOOKUP(tblInvoices[[#This Row],[Currency]],tblCurrency[Currency],tblCurrency[FX Rate to USD],"",0) -> 1 | R18: =_xlfn.XLOOKUP(Setup!$A$11,tblCurrency[Currency],tblCurrency[FX Rate to USD],"",0) -> 1 | S18: =tblInvoices[[#This Row],[Paid]]*tblInvoices[[#This Row],[FX Rate From]]/tblInvoices[[#This Row],[FX Rate To]] -> 2000 | T18: =tblInvoices[[#This Row],[Balance]]*tblInvoices[[#This Row],[FX Rate From]]/tblInvoices[[#This Row],[FX Rate To]] -> 2000

Sheet Payments (hidden)
A2: Payment ID | B2: Invoice ID | C2: Details | D2: Entity | E2: Invoice Type | F2: Invoice Details | G2: Open Amount | H2: Currency | I2: Payment Date | J2: Amount | K2: Payment Method | L2: FX Rate From | M2: FX Rate To | N2: Amount FX Rate
A3: PAY-2005 | B3: INV-1001 | C3: =_xlfn.XLOOKUP(tblPayments[[#This Row],[Invoice ID]],tblInvoices[Invoice ID],tblInvoices[Details],"",0) -> Monthly Retainer | D3: =_xlfn.XLOOKUP(tblPayments[[#This Row],[Invoice ID]],tblInvoices[Invoice ID],tblInvoices[Entity],"",0) -> Amazon Supplier Ltd | E3: =_xlfn.XLOOKUP(tblPayments[[#This Row],[Invoice ID]],tblInvoices[Invoice ID],tblInvoices[Entity Type],"",0,) -> Vendor | F3: =_xlfn.XLOOKUP(tblPayments[[#This Row],[Invoice ID]],tblInvoices[Invoice ID],tblInvoices[Details],0,0,) -> Monthly Retainer | G3: =_xlfn.XLOOKUP(tblPayments[[#This Row],[Invoice ID]],tblInvoices[Invoice ID],tblInvoices[Balance],0,0,) -> 0 | H3: =_xlfn.XLOOKUP(tblPayments[[#This Row],[Invoice ID]],tblInvoices[Invoice ID],tblInvoices[Currency],0,0,) -> USD | I3: 2026-04-04 | J3: 100 | K3: Bank Transfer | L3: =_xlfn.XLOOKUP(tblPayments[[#This Row],[Currency]],tblCurrency[Currency],tblCurrency[FX Rate to USD],"",0) -> 1 | M3: =_xlfn.XLOOKUP(Setup!$A$11,tblCurrency[Currency],tblCurrency[FX Rate to USD],"",0) -> 1 | N3: =tblPayments[[#This Row],[Amount]]*tblPayments[[#This Row],[FX Rate From]]/tblPayments[[#This Row],[FX Rate To]] -> 100
A4: PAY-2006 | B4: INV-1003 | C4: =_xlfn.XLOOKUP(tblPayments[[#This Row],[Invoice ID]],tblInvoices[Invoice ID],tblInvoices[Details],"",0) -> Office Supplies Mar | D4: =_xlfn.XLOOKUP(tblPayments[[#This Row],[Invoice ID]],tblInvoices[Invoice ID],tblInvoices[Entity],"",0) -> Office Depot | E4: =_xlfn.XLOOKUP(tblPayments[[#This Row],[Invoice ID]],tblInvoices[Invoice ID],tblInvoices[Entity Type],"",0,) -> Vendor | F4: =_xlfn.XLOOKUP(tblPayments[[#This Row],[Invoice ID]],tblInvoices[Invoice ID],tblInvoices[Details],0,0,) -> Office Supplies Mar | G4: =_xlfn.XLOOKUP(tblPayments[[#This Row],[Invoice ID]],tblInvoices[Invoice ID],tblInvoices[Balance],0,0,) -> 150 | H4: =_xlfn.XLOOKUP(tblPayments[[#This Row],[Invoice ID]],tblInvoices[Invoice ID],tblInvoices[Currency],0,0,) -> GBP | I4: 2026-04-04 | J4: 50 | K4: Credit Card | L4: =_xlfn.XLOOKUP(tblPayments[[#This Row],[Currency]],tblCurrency[Currency],tblCurrency[FX Rate to USD],"",0) -> 1.25 | M4: =_xlfn.XLOOKUP(Setup!$A$11,tblCurrency[Currency],tblCurrency[FX Rate to USD],"",0) -> 1 | N4: =tblPayments[[#This Row],[Amount]]*tblPayments[[#This Row],[FX Rate From]]/tblPayments[[#This Row],[FX Rate To]] -> 62.5
A5: PAY-2007 | B5: INV-1002 | C5: =_xlfn.XLOOKUP(tblPayments[[#This Row],[Invoice ID]],tblInvoices[Invoice ID],tblInvoices[Details],"",0) -> Invoice #FF-1023 | D5: =_xlfn.XLOOKUP(tblPayments[[#This Row],[Invoice ID]],tblInvoices[Invoice ID],tblInvoices[Entity],"",0) -> Fresh Foods Co | E5: =_xlfn.XLOOKUP(tblPayments[[#This Row],[Invoice ID]],tblInvoices[Invoice ID],tblInvoices[Entity Type],"",0,) -> Vendor | F5: =_xlfn.XLOOKUP(tblPayments[[#This Row],[Invoice ID]],tblInvoices[Invoice ID],tblInvoices[Details],0,0,) -> Invoice #FF-1023 | G5: =_xlfn.XLOOKUP(tblPayments[[#This Row],[Invoice ID]],tblInvoices[Invoice ID],tblInvoices[Balance],0,0,) -> 0 | H5: =_xlfn.XLOOKUP(tblPayments[[#This Row],[Invoice ID]],tblInvoices[Invoice ID],tblInvoices[Currency],0,0,) -> EUR | I5: 2026-04-04 | J5: 200 | K5: Bank Transfer | L5: =_xlfn.XLOOKUP(tblPayments[[#This Row],[Currency]],tblCurrency[Currency],tblCurrency[FX Rate to USD],"",0) -> 1.18 | M5: =_xlfn.XLOOKUP(Setup!$A$11,tblCurrency[Currency],tblCurrency[FX Rate to USD],"",0) -> 1 | N5: =tblPayments[[#This Row],[Amount]]*tblPayments[[#This Row],[FX Rate From]]/tblPayments[[#This Row],[FX Rate To]] -> 236
A6: PAY-2008 | B6: INV-1006 | C6: =_xlfn.XLOOKUP(tblPayments[[#This Row],[Invoice ID]],tblInvoices[Invoice ID],tblInvoices[Details],"",0) -> Packaging Order #GP-2 | D6: =_xlfn.XLOOKUP(tblPayments[[#This Row],[Invoice ID]],tblInvoices[Invoice ID],tblInvoices[Entity],"",0) -> Global Packaging | E6: =_xlfn.XLOOKUP(tblPayments[[#This Row],[Invoice ID]],tblInvoices[Invoice ID],tblInvoices[Entity Type],"",0,) -> Vendor | F6: =_xlfn.XLOOKUP(tblPayments[[#This Row],[Invoice ID]],tblInvoices[Invoice ID],tblInvoices[Details],0,0,) -> Packaging Order #GP-2 | G6: =_xlfn.XLOOKUP(tblPayments[[#This Row],[Invoice ID]],tblInvoices[Invoice ID],tblInvoices[Balance],0,0,) -> 0 | H6: =_xlfn.XLOOKUP(tblPayments[[#This Row],[Invoice ID]],tblInvoices[Invoice ID],tblInvoices[Currency],0,0,) -> EUR | I6: 2026-03-20 | J6: 400 | K6: Bank Transfer | L6: =_xlfn.XLOOKUP(tblPayments[[#This Row],[Currency]],tblCurrency[Currency],tblCurrency[FX Rate to USD],"",0) -> 1.18 | M6: =_xlfn.XLOOKUP(Setup!$A$11,tblCurrency[Currency],tblCurrency[FX Rate to USD],"",0) -> 1 | N6: =tblPayments[[#This Row],[Amount]]*tblPayments[[#This Row],[FX Rate From]]/tblPayments[[#This Row],[FX Rate To]] -> 472
A7: PAY-2009 | B7: INV-1003 | C7: =_xlfn.XLOOKUP(tblPayments[[#This Row],[Invoice ID]],tblInvoices[Invoice ID],tblInvoices[Details],"",0) -> Office Supplies Mar | D7: =_xlfn.XLOOKUP(tblPayments[[#This Row],[Invoice ID]],tblInvoices[Invoice ID],tblInvoices[Entity],"",0) -> Office Depot | E7: =_xlfn.XLOOKUP(tblPayments[[#This Row],[Invoice ID]],tblInvoices[Invoice ID],tblInvoices[Entity Type],"",0,) -> Vendor | F7: =_xlfn.XLOOKUP(tblPayments[[#This Row],[Invoice ID]],tblInvoices[Invoice ID],tblInvoices[Details],0,0,) -> Office Supplies Mar | G7: =_xlfn.XLOOKUP(tblPayments[[#This Row],[Invoice ID]],tblInvoices[Invoice ID],tblInvoices[Balance],0,0,) -> 150 | H7: =_xlfn.XLOOKUP(tblPayments[[#This Row],[Invoice ID]],tblInvoices[Invoice ID],tblInvoices[Currency],0,0,) -> GBP | I7: 2026-04-10 | J7: 50 | K7: Credit Card | L7: =_xlfn.XLOOKUP(tblPayments[[#This Row],[Currency]],tblCurrency[Currency],tblCurrency[FX Rate to USD],"",0) -> 1.25 | M7: =_xlfn.XLOOKUP(Setup!$A$11,tblCurrency[Currency],tblCurrency[FX Rate to USD],"",0) -> 1 | N7: =tblPayments[[#This Row],[Amount]]*tblPayments[[#This Row],[FX Rate From]]/tblPayments[[#This Row],[FX Rate To]] -> 62.5
A8: PAY-2010 | B8: INV-1001 | C8: =_xlfn.XLOOKUP(tblPayments[[#This Row],[Invoice ID]],tblInvoices[Invoice ID],tblInvoices[Details],"",0) -> Monthly Retainer | D8: =_xlfn.XLOOKUP(tblPayments[[#This Row],[Invoice ID]],tblInvoices[Invoice ID],tblInvoices[Entity],"",0) -> Amazon Supplier Ltd | E8: =_xlfn.XLOOKUP(tblPayments[[#This Row],[Invoice ID]],tblInvoices[Invoice ID],tblInvoices[Entity Type],"",0,) -> Vendor | F8: =_xlfn.XLOOKUP(tblPayments[[#This Row],[Invoice ID]],tblInvoices[Invoice ID],tblInvoices[Details],0,0,) -> Monthly Retainer | G8: =_xlfn.XLOOKUP(tblPayments[[#This Row],[Invoice ID]],tblInvoices[Invoice ID],tblInvoices[Balance],0,0,) -> 0 | H8: =_xlfn.XLOOKUP(tblPayments[[#This Row],[Invoice ID]],tblInvoices[Invoice ID],tblInvoices[Currency],0,0,) -> USD | I8: 2026-04-10 | J8: 50 | K8: Bank Transfer | L8: =_xlfn.XLOOKUP(tblPayments[[#This Row],[Currency]],tblCurrency[Currency],tblCurrency[FX Rate to USD],"",0) -> 1 | M8: =_xlfn.XLOOKUP(Setup!$A$11,tblCurrency[Currency],tblCurrency[FX Rate to USD],"",0) -> 1 | N8: =tblPayments[[#This Row],[Amount]]*tblPayments[[#This Row],[FX Rate From]]/tblPayments[[#This Row],[FX Rate To]] -> 50
A9: PAY-2011 | B9: INV-1008 | C9: =_xlfn.XLOOKUP(tblPayments[[#This Row],[Invoice ID]],tblInvoices[Invoice ID],tblInvoices[Details],"",0) -> Bulk Packaging Order | D9: =_xlfn.XLOOKUP(tblPayments[[#This Row],[Invoice ID]],tblInvoices[Invoice ID],tblInvoices[Entity],"",0) -> Global Packaging | E9: =_xlfn.XLOOKUP(tblPayments[[#This Row],[Invoice ID]],tblInvoices[Invoice ID],tblInvoices[Entity Type],"",0,) -> Vendor | F9: =_xlfn.XLOOKUP(tblPayments[[#This Row],[Invoice ID]],tblInvoices[Invoice ID],tblInvoices[Details],0,0,) -> Bulk Packaging Order | G9: =_xlfn.XLOOKUP(tblPayments[[#This Row],[Invoice ID]],tblInvoices[Invoice ID],tblInvoices[Balance],0,0,) -> 0 | H9: =_xlfn.XLOOKUP(tblPayments[[#This Row],[Invoice ID]],tblInvoices[Invoice ID],tblInvoices[Currency],0,0,) -> EUR | I9: 2026-03-01 | J9: 200 | K9: Bank Transfer | L9: =_xlfn.XLOOKUP(tblPayments[[#This Row],[Currency]],tblCurrency[Currency],tblCurrency[FX Rate to USD],"",0) -> 1.18 | M9: =_xlfn.XLOOKUP(Setup!$A$11,tblCurrency[Currency],tblCurrency[FX Rate to USD],"",0) -> 1 | N9: =tblPayments[[#This Row],[Amount]]*tblPayments[[#This Row],[FX Rate From]]/tblPayments[[#This Row],[FX Rate To]] -> 236
A10: PAY-2012 | B10: INV-1008 | C10: =_xlfn.XLOOKUP(tblPayments[[#This Row],[Invoice ID]],tblInvoices[Invoice ID],tblInvoices[Details],"",0) -> Bulk Packaging Order | D10: =_xlfn.XLOOKUP(tblPayments[[#This Row],[Invoice ID]],tblInvoices[Invoice ID],tblInvoices[Entity],"",0) -> Global Packaging | E10: =_xlfn.XLOOKUP(tblPayments[[#This Row],[Invoice ID]],tblInvoices[Invoice ID],tblInvoices[Entity Type],"",0,) -> Vendor | F10: =_xlfn.XLOOKUP(tblPayments[[#This Row],[Invoice ID]],tblInvoices[Invoice ID],tblInvoices[Details],0,0,) -> Bulk Packaging Order | G10: =_xlfn.XLOOKUP(tblPayments[[#This Row],[Invoice ID]],tblInvoices[Invoice ID],tblInvoices[Balance],0,0,) -> 0 | H10: =_xlfn.XLOOKUP(tblPayments[[#This Row],[Invoice ID]],tblInvoices[Invoice ID],tblInvoices[Currency],0,0,) -> EUR | I10: 2026-03-15 | J10: 300 | K10: Credit Card | L10: =_xlfn.XLOOKUP(tblPayments[[#This Row],[Currency]],tblCurrency[Currency],tblCurrency[FX Rate to USD],"",0) -> 1.18 | M10: =_xlfn.XLOOKUP(Setup!$A$11,tblCurrency[Currency],tblCurrency[FX Rate to USD],"",0) -> 1 | N10: =tblPayments[[#This Row],[Amount]]*tblPayments[[#This Row],[FX Rate From]]/tblPayments[[#This Row],[FX Rate To]] -> 354
A11: PAY-2013 | B11: INV-1004 | C11: =_xlfn.XLOOKUP(tblPayments[[#This Row],[Invoice ID]],tblInvoices[Invoice ID],tblInvoices[Details],"",0) -> Hardware Batch #TC-88 | D11: =_xlfn.XLOOKUP(tblPayments[[#This Row],[Invoice ID]],tblInvoices[Invoice ID],tblInvoices[Entity],"",0) -> Tech Components Inc | E11: =_xlfn.XLOOKUP(tblPayments[[#This Row],[Invoice ID]],tblInvoices[Invoice ID],tblInvoices[Entity Type],"",0,) -> Vendor | F11: =_xlfn.XLOOKUP(tblPayments[[#This Row],[Invoice ID]],tblInvoices[Invoice ID],tblInvoices[Details],0,0,) -> Hardware Batch #TC-88 | G11: =_xlfn.XLOOKUP(tblPayments[[#This Row],[Invoice ID]],tblInvoices[Invoice ID],tblInvoices[Balance],0,0,) -> 200 | H11: =_xlfn.XLOOKUP(tblPayments[[#This Row],[Invoice ID]],tblInvoices[Invoice ID],tblInvoices[Currency],0,0,) -> USD | I11: 2026-02-01 | J11: 100 | K11: Bank Transfer | L11: =_xlfn.XLOOKUP(tblPayments[[#This Row],[Currency]],tblCurrency[Currency],tblCurrency[FX Rate to USD],"",0) -> 1 | M11: =_xlfn.XLOOKUP(Setup!$A$11,tblCurrency[Currency],tblCurrency[FX Rate to USD],"",0) -> 1 | N11: =tblPayments[[#This Row],[Amount]]*tblPayments[[#This Row],[FX Rate From]]/tblPayments[[#This Row],[FX Rate To]] -> 100
A12: PAY-2014 | B12: INV-1005 | C12: =_xlfn.XLOOKUP(tblPayments[[#This Row],[Invoice ID]],tblInvoices[Invoice ID],tblInvoices[Details],"",0) -> Packaging Order #GP-1 | D12: =_xlfn.XLOOKUP(tblPayments[[#This Row],[Invoice ID]],tblInvoices[Invoice ID],tblInvoices[Entity],"",0) -> Global Packaging | E12: =_xlfn.XLOOKUP(tblPayments[[#This Row],[Invoice ID]],tblInvoices[Invoice ID],tblInvoices[Entity Type],"",0,) -> Vendor | F12: =_xlfn.XLOOKUP(tblPayments[[#This Row],[Invoice ID]],tblInvoices[Invoice ID],tblInvoices[Details],0,0,) -> Packaging Order #GP-1 | G12: =_xlfn.XLOOKUP(tblPayments[[#This Row],[Invoice ID]],tblInvoices[Invoice ID],tblInvoices[Balance],0,0,) -> 250 | H12: =_xlfn.XLOOKUP(tblPayments[[#This Row],[Invoice ID]],tblInvoices[Invoice ID],tblInvoices[Currency],0,0,) -> EUR | I12: 2026-03-05 | J12: 100 | K12: Credit Card | L12: =_xlfn.XLOOKUP(tblPayments[[#This Row],[Currency]],tblCurrency[Currency],tblCurrency[FX Rate to USD],"",0) -> 1.18 | M12: =_xlfn.XLOOKUP(Setup!$A$11,tblCurrency[Currency],tblCurrency[FX Rate to USD],"",0) -> 1 | N12: =tblPayments[[#This Row],[Amount]]*tblPayments[[#This Row],[FX Rate From]]/tblPayments[[#This Row],[FX Rate To]] -> 118
A13: PAY-2015 | B13: INV-1016 | C13: =_xlfn.XLOOKUP(tblPayments[[#This Row],[Invoice ID]],tblInvoices[Invoice ID],tblInvoices[Details],"",0) -> Final Delivery | D13: =_xlfn.XLOOKUP(tblPayments[[#This Row],[Invoice ID]],tblInvoices[Invoice ID],tblInvoices[Entity],"",0) -> NextGen Tech | E13: =_xlfn.XLOOKUP(tblPayments[[#This Row],[Invoice ID]],tblInvoices[Invoice ID],tblInvoices[Entity Type],"",0,) -> Customer | F13: =_xlfn.XLOOKUP(tblPayments[[#This Row],[Invoice ID]],tblInvoices[Invoice ID],tblInvoices[Details],0,0,) -> Final Delivery | G13: =_xlfn.XLOOKUP(tblPayments[[#This Row],[Invoice ID]],tblInvoices[Invoice ID],tblInvoices[Balance],0,0,) -> 2000 | H13: =_xlfn.XLOOKUP(tblPayments[[#This Row],[Invoice ID]],tblInvoices[Invoice ID],tblInvoices[Currency],0,0,) -> USD | I13: 2026-01-16 | J13: 2000 | K13: Credit Card | L13: =_xlfn.XLOOKUP(tblPayments[[#This Row],[Currency]],tblCurrency[Currency],tblCurrency[FX Rate to USD],"",0) -> 1 | M13: =_xlfn.XLOOKUP(Setup!$A$11,tblCurrency[Currency],tblCurrency[FX Rate to USD],"",0) -> 1 | N13: =tblPayments[[#This Row],[Amount]]*tblPayments[[#This Row],[FX Rate From]]/tblPayments[[#This Row],[FX Rate To]] -> 2000
A14: PAY-2016 | B14: INV-1013 | C14: =_xlfn.XLOOKUP(tblPayments[[#This Row],[Invoice ID]],tblInvoices[Invoice ID],tblInvoices[Details],"",0) -> Product Integration | D14: =_xlfn.XLOOKUP(tblPayments[[#This Row],[Invoice ID]],tblInvoices[Invoice ID],tblInvoices[Entity],"",0) -> NextGen Tech | E14: =_xlfn.XLOOKUP(tblPayments[[#This Row],[Invoice ID]],tblInvoices[Invoice ID],tblInvoices[Entity Type],"",0,) -> Customer | F14: =_xlfn.XLOOKUP(tblPayments[[#This Row],[Invoice ID]],tblInvoices[Invoice ID],tblInvoices[Details],0,0,) -> Product Integration | G14: =_xlfn.XLOOKUP(tblPayments[[#This Row],[Invoice ID]],tblInvoices[Invoice ID],tblInvoices[Balance],0,0,) -> 0 | H14: =_xlfn.XLOOKUP(tblPayments[[#This Row],[Invoice ID]],tblInvoices[Invoice ID],tblInvoices[Currency],0,0,) -> USD | I14: 2026-04-06 | J14: 1600 | K14: Bank Transfer | L14: =_xlfn.XLOOKUP(tblPayments[[#This Row],[Currency]],tblCurrency[Currency],tblCurrency[FX Rate to USD],"",0) -> 1 | M14: =_xlfn.XLOOKUP(Setup!$A$11,tblCurrency[Currency],tblCurrency[FX Rate to USD],"",0) -> 1 | N14: =tblPayments[[#This Row],[Amount]]*tblPayments[[#This Row],[FX Rate From]]/tblPayments[[#This Row],[FX Rate To]] -> 1600
A15: PAY-2017 | B15: INV-1013 | C15: =_xlfn.XLOOKUP(tblPayments[[#This Row],[Invoice ID]],tblInvoices[Invoice ID],tblInvoices[Details],"",0) -> Product Integration | D15: =_xlfn.XLOOKUP(tblPayments[[#This Row],[Invoice ID]],tblInvoices[Invoice ID],tblInvoices[Entity],"",0) -> NextGen Tech | E15: =_xlfn.XLOOKUP(tblPayments[[#This Row],[Invoice ID]],tblInvoices[Invoice ID],tblInvoices[Entity Type],"",0,) -> Customer | F15: =_xlfn.XLOOKUP(tblPayments[[#This Row],[Invoice ID]],tblInvoices[Invoice ID],tblInvoices[Details],0,0,) -> Product Integration | G15: =_xlfn.XLOOKUP(tblPayments[[#This Row],[Invoice ID]],tblInvoices[Invoice ID],tblInvoices[Balance],0,0,) -> 0 | H15: =_xlfn.XLOOKUP(tblPayments[[#This Row],[Invoice ID]],tblInvoices[Invoice ID],tblInvoices[Currency],0,0,) -> USD | I15: 2026-04-14 | J15: 1650 | K15: Bank Transfer | L15: =_xlfn.XLOOKUP(tblPayments[[#This Row],[Currency]],tblCurrency[Currency],tblCurrency[FX Rate to USD],"",0) -> 1 | M15: =_xlfn.XLOOKUP(Setup!$A$11,tblCurrency[Currency],tblCurrency[FX Rate to USD],"",0) -> 1 | N15: =tblPayments[[#This Row],[Amount]]*tblPayments[[#This Row],[FX Rate From]]/tblPayments[[#This Row],[FX Rate To]] -> 1650
A16: PAY-2018 | B16: INV-1012 | C16: =_xlfn.XLOOKUP(tblPayments[[#This Row],[Invoice ID]],tblInvoices[Invoice ID],tblInvoices[Details],"",0) -> Consulting Phase 1 | D16: =_xlfn.XLOOKUP(tblPayments[[#This Row],[Invoice ID]],tblInvoices[Invoice ID],tblInvoices[Entity],"",0) -> NextGen Tech | E16: =_xlfn.XLOOKUP(tblPayments[[#This Row],[Invoice ID]],tblInvoices[Invoice ID],tblInvoices[Entity Type],"",0,) -> Customer | F16: =_xlfn.XLOOKUP(tblPayments[[#This Row],[Invoice ID]],tblInvoices[Invoice ID],tblInvoices[Details],0,0,) -> Consulting Phase 1 | G16: =_xlfn.XLOOKUP(tblPayments[[#This Row],[Invoice ID]],tblInvoices[Invoice ID],tblInvoices[Balance],0,0,) -> 500 | H16: =_xlfn.XLOOKUP(tblPayments[[#This Row],[Invoice ID]],tblInvoices[Invoice ID],tblInvoices[Currency],0,0,) -> USD | I16: 2026-02-05 | J16: 2000 | K16: Credit Card | L16: =_xlfn.XLOOKUP(tblPayments[[#This Row],[Currency]],tblCurrency[Currency],tblCurrency[FX Rate to USD],"",0) -> 1 | M16: =_xlfn.XLOOKUP(Setup!$A$11,tblCurrency[Currency],tblCurrency[FX Rate to USD],"",0) -> 1 | N16: =tblPayments[[#This Row],[Amount]]*tblPayments[[#This Row],[FX Rate From]]/tblPayments[[#This Row],[FX Rate To]] -> 2000

Sheet Entities
A2: Entity Name | B2: Type | C2: Payment Terms | D2: Currency
A3: Amazon Supplier Ltd | B3: Vendor | C3: 7 | D3: USD
A4: Fresh Foods Co | B4: Vendor | C4: 14 | D4: EUR
A5: Office Depot | B5: Vendor | C5: 30 | D5: GBP
A6: Tech Components Inc | B6: Vendor | C6: 0 | D6: USD
A7: Global Packaging | B7: Vendor | C7: 7 | D7: EUR
A8: AJ Hardware | B8: Customer | C8: 14 | D8: GBP
A9: Blue Retail | B9: Customer | C9: 30 | D9: USD
A10: Green Market | B10: Customer | C10: 7 | D10: USD
A11: Urban Stores | B11: Customer | C11: 14 | D11: USD
A12: NextGen Tech | B12: Customer | C12: 30 | D12: USD

Sheet Lists
A2: Category | C2: Payment Method | E2: Currency | F2: FX Rate to USD | G2: Symbol | I2: Payment Terms | K2: Selected Currency
A3: Office | C3: Bank Transfer | E3: USD | F3: 1 | G3: $ | I3: 7 | K3: USD
A4: Food | C4: Credit Card | E4: EUR | F4: 1.18 | G4: € | I4: 14
A5: Travel | C5: PayPal | E5: GBP | F5: 1.25 | G5: £ | I5: 30
A6: Product | I6: 0
A7: Consulting

Sheet Setup (hidden)
A1: Key | B1: Value | D1: Home | H1: Cash Flow Trend | N1: Aging Analysis | Q1: With Icons
A2: Version | B2: Free | D2: KPI | E2: Format | F2: Values | H2: Month | I2: Inflow | J2: Outflow | K2: Net | L2: Cumulative Cash Position | N2: Bucket | O2: Receivables | P2: Payables | Q2: Receivables | R2: Payables | S2: From | T2: To
A3: MaxInvoices | B3: 10 | D3: Expected Inflow | E3: =$A$9 & TEXT(F3,"#,##0") -> $6,125 | F3: =SUMIFS(tblInvoices[Balance FX Rate],tblInvoices[Entity Type],"Customer") -> 6125 | H3: =EOMONTH(TODAY(),-5) -> 2025-11-30 | I3: =SUMIFS( tblPayments[Amount FX Rate], tblPayments[Invoice Type],"Customer", tblPayments[Payment Date], ">="&EOMONTH($H3,-1)+1, tblPayments[Payment Date], "<="&EOMONTH($H3,0) ) -> 0 | J3: =SUMIFS( tblPayments[Amount FX Rate], tblPayments[Invoice Type],"Vendor", tblPayments[Payment Date], ">="&EOMONTH($H3,-1)+1, tblPayments[Payment Date], "<="&EOMONTH($H3,0) ) -> 0 | K3: =I3-J3 -> 0 | L3: =SUM($K$3:K3) -> 0 | N3: Current | O3: =SUMIFS(tblInvoices[Balance FX Rate], tblInvoices[Days Overdue],">="&$S3, tblInvoices[Days Overdue],"<="&$T3, tblInvoices[Entity Type],"Customer") -> 2375 | P3: =SUMIFS(tblInvoices[Balance FX Rate], tblInvoices[Days Overdue],">="&$S3, tblInvoices[Days Overdue],"<="&$T3, tblInvoices[Entity Type],"Vendor") -> 888.75 | Q3: =$A$9 & TEXT(O3,"#,##0") -> $2,375 | R3: =$A$9 & TEXT(P3,"#,##0") -> $889 | S3: 0 | T3: 0
A4: MaxPayments | B4: 20 | D4: Expected Outflow | E4: =$A$9 & TEXT(F4,"#,##0") -> $2,456 | F4: =SUMIFS(tblInvoices[Balance FX Rate],tblInvoices[Entity Type],"Vendor") -> 2456.25 | H4: =EOMONTH(H3,1) -> 2025-12-31 | I4: =SUMIFS( tblPayments[Amount FX Rate], tblPayments[Invoice Type],"Customer", tblPayments[Payment Date], ">="&EOMONTH($H4,-1)+1, tblPayments[Payment Date], "<="&EOMONTH($H4,0) ) -> 0 | J4: =SUMIFS( tblPayments[Amount FX Rate], tblPayments[Invoice Type],"Vendor", tblPayments[Payment Date], ">="&EOMONTH($H4,-1)+1, tblPayments[Payment Date], "<="&EOMONTH($H4,0) ) -> 0 | K4: =I4-J4 -> 0 | L4: =SUM($K$3:K4) -> 0 | N4: 1–30 Late | O4: =SUMIFS(tblInvoices[Balance FX Rate], tblInvoices[Days Overdue],">="&$S4, tblInvoices[Days Overdue],"<="&$T4, tblInvoices[Entity Type],"Customer") -> 1750 | P4: =SUMIFS(tblInvoices[Balance FX Rate], tblInvoices[Days Overdue],">="&$S4, tblInvoices[Days Overdue],"<="&$T4, tblInvoices[Entity Type],"Vendor") -> 187.5 | Q4: =$A$9 & TEXT(O4,"#,##0") -> $1,750 | R4: =$A$9 & TEXT(P4,"#,##0") -> $188 | S4: 1 | T4: 30
D5: Net Position | E5: $3,669 | F5: =F3-F4 -> 3668.75 | H5: =EOMONTH(H4,1) -> 2026-01-31 | I5: =SUMIFS( tblPayments[Amount FX Rate], tblPayments[Invoice Type],"Customer", tblPayments[Payment Date], ">="&EOMONTH($H5,-1)+1, tblPayments[Payment Date], "<="&EOMONTH($H5,0) ) -> 2000 | J5: =SUMIFS( tblPayments[Amount FX Rate], tblPayments[Invoice Type],"Vendor", tblPayments[Payment Date], ">="&EOMONTH($H5,-1)+1, tblPayments[Payment Date], "<="&EOMONTH($H5,0) ) -> 0 | K5: 2000 | L5: =SUM($K$3:K5) -> 2000 | N5: 31–60 Late | O5: =SUMIFS(tblInvoices[Balance FX Rate], tblInvoices[Days Overdue],">="&$S5, tblInvoices[Days Overdue],"<="&$T5, tblInvoices[Entity Type],"Customer") -> 2000 | P5: =SUMIFS(tblInvoices[Balance FX Rate], tblInvoices[Days Overdue],">="&$S5, tblInvoices[Days Overdue],"<="&$T5, tblInvoices[Entity Type],"Vendor") -> 200 | Q5: $2,000 | R5: $200 | S5: =T4+1 -> 31 | T5: 60
A6: ="All values shown in "&Table8[Selected Currency] -> All values shown in USD | D6: Overdue Receivables | E6: $3,750 | F6: =SUMIFS(tblInvoices[Balance FX Rate],tblInvoices[Entity Type],"Customer",tblInvoices[Status],"Late") -> 3750 | H6: 2026-02-28 | I6: =SUMIFS( tblPayments[Amount FX Rate], tblPayments[Invoice Type],"Customer", tblPayments[Payment Date], ">="&EOMONTH($H6,-1)+1, tblPayments[Payment Date], "<="&EOMONTH($H6,0) ) -> 2000 | J6: =SUMIFS( tblPayments[Amount FX Rate], tblPayments[Invoice Type],"Vendor", tblPayments[Payment Date], ">="&EOMONTH($H6,-1)+1, tblPayments[Payment Date], "<="&EOMONTH($H6,0) ) -> 100 | K6: 1900 | L6: =SUM($K$3:K6) -> 3900 | N6: 60+ Late | O6: =SUMIFS(tblInvoices[Balance FX Rate], tblInvoices[Days Overdue],">="&$S6, tblInvoices[Days Overdue],"<="&$T6, tblInvoices[Entity Type],"Customer") -> 0 | P6: =SUMIFS(tblInvoices[Balance FX Rate], tblInvoices[Days Overdue],">="&$S6, tblInvoices[Days Overdue],"<="&$T6, tblInvoices[Entity Type],"Vendor") -> 1180 | Q6: $0 | R6: $1,180 | S6: =T5+1 -> 61 | T6: 999999
D7: Overdue Payables | E7: $1,568 | F7: =SUMIFS(tblInvoices[Balance FX Rate],tblInvoices[Entity Type],"Vendor",tblInvoices[Status],"Late") -> 1567.5 | H7: 2026-03-31 | I7: =SUMIFS( tblPayments[Amount FX Rate], tblPayments[Invoice Type],"Customer", tblPayments[Payment Date], ">="&EOMONTH($H7,-1)+1, tblPayments[Payment Date], "<="&EOMONTH($H7,0) ) -> 0 | J7: =SUMIFS( tblPayments[Amount FX Rate], tblPayments[Invoice Type],"Vendor", tblPayments[Payment Date], ">="&EOMONTH($H7,-1)+1, tblPayments[Payment Date], "<="&EOMONTH($H7,0) ) -> 1180 | K7: -1180 | L7: =SUM($K$3:K7) -> 2720
A8: Currency | D8: Customer Paid This Month | E8: $3,250 | F8: =SUMIFS(tblPayments[Amount FX Rate],tblPayments[Invoice Type],"Customer",tblPayments[Payment Date],">="&$D$15,tblPayments[Payment Date],"<="&$E$15) -> 3250 | H8: 2026-04-30 | I8: =SUMIFS( tblPayments[Amount FX Rate], tblPayments[Invoice Type],"Customer", tblPayments[Payment Date], ">="&EOMONTH($H8,-1)+1, tblPayments[Payment Date], "<="&EOMONTH($H8,0) ) -> 3250 | J8: =SUMIFS( tblPayments[Amount FX Rate], tblPayments[Invoice Type],"Vendor", tblPayments[Payment Date], ">="&EOMONTH($H8,-1)+1, tblPayments[Payment Date], "<="&EOMONTH($H8,0) ) -> 511 | K8: 2739 | L8: =SUM($K$3:K8) -> 5459
A9: =_xlfn.XLOOKUP(Table8[Selected Currency],tblCurrency[Currency],tblCurrency[Symbol],"",0,) -> $ | D9: Vendor Paid This Month | E9: $511 | F9: =SUMIFS(tblPayments[Amount FX Rate],tblPayments[Invoice Type],"Vendor",tblPayments[Payment Date],">="&$D$15,tblPayments[Payment Date],"<="&$E$15) -> 511
A10: Selected Currency | D10: Paid This Month | E10: $2,739 | F10: =F8-F9 -> 2739 | H10: Month | I10: =I2&"With Icons" -> InflowWith Icons | J10: OutflowWith Icons | K10: NetWith Icons | L10: =L2&"With Icons" -> Cumulative Cash PositionWith Icons
A11: =Table8[Selected Currency] -> USD | D11: Open Receivables | E11: =F11 -> 5 | F11: =COUNTIFS(tblInvoices[Entity Type],"Customer",tblInvoices[Balance FX Rate],">0") -> 5 | H11: =H3 -> 2025-11-30 | I11: =$A$9 & TEXT(I3,"#,##0") -> $0 | J11: $0 | K11: $0 | L11: =$A$9 & TEXT(L3,"#,##0") -> $0
D12: Open Payables | E12: 6 | F12: =COUNTIFS(tblInvoices[Entity Type],"Vendor",tblInvoices[Balance FX Rate],">0") -> 6 | H12: =H4 -> 2025-12-31 | I12: =$A$9 & TEXT(I4,"#,##0") -> $0 | J12: $0 | K12: $0 | L12: $0
H13: 2026-01-31 | I13: =$A$9 & TEXT(I5,"#,##0") -> $2,000 | J13: $0 | K13: $2,000 | L13: $2,000
D14: This Month | H14: 2026-02-28 | I14: =$A$9 & TEXT(I6,"#,##0") -> $2,000 | J14: $100 | K14: $1,900 | L14: $3,900
D15: =EOMONTH(TODAY(),-1)+1 -> 2026-04-01 | E15: =EDATE(D15,1)-1 -> 2026-04-30 | H15: 2026-03-31 | I15: =$A$9 & TEXT(I7,"#,##0") -> $0 | J15: $1,180 | K15: $-1,180 | L15: $2,720
H16: 2026-04-30 | I16: =$A$9 & TEXT(I8,"#,##0") -> $3,250 | J16: $511 | K16: $2,739 | L16: $5,459
